[Event "FIDE Grand Swiss 2023"]
[Site "Villa Marina, Douglas, Isle of Man, Isle Of Man"]
[Date "2023.10.26"]
[Round "2.22"]
[White "Vachier-Lagrave, Maxime"]
[Black "Durarbayli, Vasif"]
[Result "1/2-1/2"]
[TimeControl "40/90 + 30 + 30s/move"]
[WhiteFideId "623539"]
[BlackFideId "13402935"]
[WhiteElo "2727"]
[BlackElo "2625"]

1. e4 {[%clk 01:40:58]} e5 {[%clk 01:40:50]} {[%emt 00:00:11]} 2. Nf3 {[%clk
01:41:24]} {[%emt 00:00:04]} Nc6 {[%clk 01:41:05]} {[%emt 00:00:15]} 3. Bb5
{[%clk 01:41:51]} {[%emt 00:00:02]} a6 {[%clk 01:41:18]} {[%emt 00:00:18]} 4.
Ba4 {[%clk 01:42:18]} {[%emt 00:00:03]} Nf6 {[%clk 01:41:30]} {[%emt 00:00:18]}
5. O-O {[%clk 01:42:44]} {[%emt 00:00:04]} Be7 {[%clk 01:41:45]} {[%emt
00:00:15]} 6. Re1 {[%clk 01:42:54]} {[%emt 00:00:19]} b5 {[%clk 01:42:01]}
{[%emt 00:00:14]} 7. Bb3 {[%clk 01:43:22]} {[%emt 00:00:03]} O-O {[%clk
01:42:14]} {[%emt 00:00:16]} 8. a4 {[%clk 01:43:50]} {[%emt 00:00:03]} Bb7
{[%clk 01:42:25]} {[%emt 00:00:19]} 9. d3 {[%clk 01:44:06]} {[%emt 00:00:14]}
d6 {[%clk 01:42:41]} {[%emt 00:00:14]} 10. Nbd2 {[%clk 01:44:28]} {[%emt
00:00:08]} Nd7 {[%clk 01:42:47]} {[%emt 00:00:23]} 11. c3 {[%clk 01:43:00]}
{[%emt 00:01:59]} Nc5 {[%clk 01:43:03]} {[%emt 00:00:14]} 12. axb5 {[%clk
01:43:18]} {[%emt 00:00:12]} axb5 {[%clk 01:43:21]} {[%emt 00:00:13]} 13. Rxa8
{[%clk 01:43:43]} {[%emt 00:00:04]} Qxa8 {[%clk 01:43:38]} {[%emt 00:00:12]} 14.
Bc2 {[%clk 01:44:10]} {[%emt 00:00:03]} b4 {[%clk 01:43:51]} {[%emt 00:00:18]}
15. d4 {[%clk 01:44:36]} {[%emt 00:00:04]} bxc3 {[%clk 01:44:06]} {[%emt
00:00:15]} 16. bxc3 {[%clk 01:45:02]} {[%emt 00:00:04]} Nd7 {[%clk 01:44:18]}
{[%emt 00:00:18]} 17. h4 {[%clk 01:45:23]} {[%emt 00:00:09]} Bf6 {[%clk
01:33:06]} {[%emt 00:11:42]} 18. d5 {[%clk 01:30:33]} {[%emt 00:15:20]} Ncb8
{[%clk 01:29:28]} {[%emt 00:04:07]} 19. h5 {[%clk 01:28:53]} {[%emt 00:02:10]}
Nc5 {[%clk 01:26:06]} {[%emt 00:03:52]} 20. h6 {[%clk 01:27:53]} {[%emt
00:01:31]} g6 {[%clk 01:25:12]} {[%emt 00:01:24]} 21. Nb3 {[%clk 01:27:55]}
{[%emt 00:00:28]} Nxb3 {[%clk 01:17:56]} {[%emt 00:07:45]} 22. Bxb3 {[%clk
01:28:19]} {[%emt 00:00:06]} Nd7 {[%clk 01:18:20]} {[%emt 00:00:06]} 23. Be3
{[%clk 01:17:25]} {[%emt 00:11:24]} Be7 {[%clk 01:15:50]} {[%emt 00:03:00]} 24.
c4 {[%clk 01:04:12]} {[%emt 00:13:44]} Nf6 {[%clk 01:07:30]} {[%emt 00:08:50]}
25. Qd3 {[%clk 00:52:07]} {[%emt 00:12:35]} Ng4 {[%clk 00:59:06]} {[%emt
00:08:54]} 26. c5 {[%clk 00:48:42]} {[%emt 00:03:56]} Bc8 {[%clk 00:49:25]}
{[%emt 00:10:10]} 27. Bd2 {[%clk 00:40:27]} {[%emt 00:08:45]} Qa7 {[%clk
00:45:36]} {[%emt 00:04:19]} 28. Rc1 {[%clk 00:31:02]} {[%emt 00:09:55]} Ba6
{[%clk 00:32:46]} {[%emt 00:13:19]} 29. Bc4 {[%clk 00:24:24]} {[%emt 00:07:08]}
Bxc4 {[%clk 00:27:40]} {[%emt 00:05:37]} 30. Qxc4 {[%clk 00:24:25]} {[%emt
00:00:29]} Qxc5 {[%clk 00:27:30]} {[%emt 00:00:40]} 31. Qe2 {[%clk 00:24:18]}
{[%emt 00:00:37]} Qa7 {[%clk 00:24:36]} {[%emt 00:03:24]} 32. Nh2 {[%clk
00:24:33]} {[%emt 00:00:14]} Nxh2 {[%clk 00:21:52]} {[%emt 00:03:14]} 33. Kxh2
{[%clk 00:24:33]} {[%emt 00:00:30]} Bd8 {[%clk 00:22:12]} {[%emt 00:00:10]} 34.
f4 {[%clk 00:19:09]} {[%emt 00:05:54]} Qd4 {[%clk 00:17:43]} {[%emt 00:05:00]}
35. Bc3 {[%clk 00:18:03]} {[%emt 00:01:36]} Qa4 {[%clk 00:17:25]} {[%emt
00:00:47]} 36. fxe5 {[%clk 00:16:29]} {[%emt 00:02:05]} Bg5 {[%clk 00:14:54]}
{[%emt 00:03:00]} 37. Ra1 {[%clk 00:13:52]} {[%emt 00:03:08]} Bf4+ {[%clk
00:10:04]} {[%emt 00:05:20]} 38. g3 {[%clk 00:06:55]} {[%emt 00:07:27]} Qb3
{[%clk 00:09:27]} {[%emt 00:01:06]} 39. gxf4 {[%clk 00:07:18]} {[%emt
00:00:08]} Qxc3 {[%clk 00:09:51]} {[%emt 00:00:06]} 40. Rb1 {[%clk 00:05:09]}
{[%emt 00:02:39]} dxe5 {[%clk 00:06:12]} {[%emt 00:04:08]} 41. Qb2 {[%clk
00:03:49]} {[%emt 00:01:51]} Qe3 {[%clk 00:43:11]} {[%emt 00:13:31]} 42. Qxe5
{[%clk 00:54:12]} {[%emt 00:00:07]} Qf2+ {[%clk 00:43:37]} {[%emt 00:00:04]} 43.
Kh3 {[%clk 00:54:38]} {[%emt 00:00:03]} Qf3+ {[%clk 00:44:03]} {[%emt
00:00:05]} 44. Kh2 {[%clk 00:54:56]} {[%emt 00:00:12]} Qf2+ {[%clk 00:43:40]}
{[%emt 00:00:06]} 1/2-1/2

[Event "FIDE Grand Swiss 2023"]
[Site "Villa Marina, Douglas, Isle of Man, Isle Of Man"]
[Date "2023.10.26"]
[Round "2.23"]
[White "Aryan, Chopra"]
[Black "Keymer, Vincent"]
[Result "1/2-1/2"]
[TimeControl "40/90 + 30 + 30s/move"]
[WhiteFideId "5084423"]
[BlackFideId "12940690"]
[WhiteElo "2634"]
[BlackElo "2717"]

1. e4 {[%clk 01:40:57]} {[%emt 00:00:02]} e5 {[%clk 01:40:56]} {[%emt
00:00:05]} 2. Nf3 {[%clk 01:41:23]} {[%emt 00:00:03]} Nc6 {[%clk 01:41:24]}
{[%emt 00:00:03]} 3. Bc4 {[%clk 01:41:47]} {[%emt 00:00:05]} Nf6 {[%clk
01:41:49]} {[%emt 00:00:04]} 4. d3 {[%clk 01:42:13]} {[%emt 00:00:05]} Bc5
{[%clk 01:42:16]} {[%emt 00:00:04]} 5. c3 {[%clk 01:42:38]} {[%emt 00:00:05]}
a6 {[%clk 01:42:42]} {[%emt 00:00:04]} 6. a4 {[%clk 01:42:09]} {[%emt
00:00:58]} Ba7 {[%clk 01:42:23]} {[%emt 00:00:50]} 7. O-O {[%clk 01:42:16]}
{[%emt 00:00:22]} O-O {[%clk 01:42:48]} {[%emt 00:00:04]} 8. Re1 {[%clk
01:41:35]} {[%emt 00:01:11]} Re8 {[%clk 01:43:13]} {[%emt 00:00:05]} 9. Bg5
{[%clk 01:22:13]} {[%emt 00:19:52]} h6 {[%clk 01:43:32]} {[%emt 00:00:11]} 10.
Bh4 {[%clk 01:22:39]} {[%emt 00:00:04]} d6 {[%clk 01:43:52]} {[%emt 00:00:11]}
11. Nbd2 {[%clk 01:20:41]} {[%emt 00:02:28]} g5 {[%clk 01:44:17]} {[%emt
00:00:05]} 12. Bg3 {[%clk 01:19:29]} {[%emt 00:01:42]} Nh7 {[%clk 01:44:42]}
{[%emt 00:00:05]} 13. Nf1 {[%clk 00:59:17]} {[%emt 00:20:42]} Nf8 {[%clk
01:31:25]} {[%emt 00:13:47]} 14. Ne3 {[%clk 00:54:03]} {[%emt 00:05:43]} Ng6
{[%clk 01:27:57]} {[%emt 00:03:58]} 15. h3 {[%clk 00:48:43]} {[%emt 00:05:50]}
Kg7 {[%clk 01:13:21]} {[%emt 00:15:06]} 16. b4 {[%clk 00:43:22]} {[%emt
00:05:51]} Bxe3 {[%clk 01:11:59]} {[%emt 00:01:52]} 17. fxe3 {[%clk 00:41:21]}
{[%emt 00:02:30]} h5 {[%clk 01:07:16]} {[%emt 00:05:13]} 18. Rf1 {[%clk
00:33:43]} {[%emt 00:08:08]} Rf8 {[%clk 01:05:03]} {[%emt 00:02:44]} 19. b5
{[%clk 00:24:36]} {[%emt 00:09:38]} axb5 {[%clk 01:01:53]} {[%emt 00:03:39]} 20.
axb5 {[%clk 00:24:58]} {[%emt 00:00:08]} Rxa1 {[%clk 01:02:14]} {[%emt
00:00:09]} 21. Qxa1 {[%clk 00:25:23]} {[%emt 00:00:05]} Nb8 {[%clk 01:02:28]}
{[%emt 00:00:17]} 22. Qe1 {[%clk 00:20:17]} {[%emt 00:05:36]} Nd7 {[%clk
00:56:56]} {[%emt 00:06:02]} 23. h4 {[%clk 00:17:19]} {[%emt 00:03:27]} f6
{[%clk 00:57:02]} {[%emt 00:00:24]} 24. d4 {[%clk 00:16:45]} {[%emt 00:01:05]}
Qe7 {[%clk 00:55:17]} {[%emt 00:02:14]} 25. Nd2 {[%clk 00:15:02]} {[%emt
00:02:12]} Nb6 {[%clk 00:49:02]} {[%emt 00:06:46]} 26. Be2 {[%clk 00:15:00]}
{[%emt 00:00:31]} Rh8 {[%clk 00:49:25]} {[%emt 00:00:07]} 27. Nc4 {[%clk
00:13:04]} {[%emt 00:02:27]} Nxc4 {[%clk 00:40:43]} {[%emt 00:09:13]} 28. Bxc4
{[%clk 00:13:28]} {[%emt 00:00:04]} Be6 {[%clk 00:39:44]} {[%emt 00:01:29]} 29.
Be2 {[%clk 00:10:56]} {[%emt 00:03:03]} b6 {[%clk 00:39:34]} {[%emt 00:00:40]}
30. Qf2 {[%clk 00:10:12]} {[%emt 00:01:13]} Bf7 {[%clk 00:34:04]} {[%emt
00:06:01]} 31. c4 {[%clk 00:06:08]} {[%emt 00:04:34]} Be6 {[%clk 00:28:34]}
{[%emt 00:06:00]} 32. Ra1 {[%clk 00:05:46]} {[%emt 00:00:51]} Kh6 {[%clk
00:27:55]} {[%emt 00:01:09]} 33. Ra7 {[%clk 00:05:09]} {[%emt 00:01:07]} Rf8
{[%clk 00:27:08]} {[%emt 00:01:17]} 34. Bd3 {[%clk 00:05:02]} {[%emt 00:00:37]}
Bg4 {[%clk 00:25:41]} {[%emt 00:01:57]} 35. Ra1 {[%clk 00:02:36]} {[%emt
00:02:56]} f5 {[%clk 00:23:13]} {[%emt 00:02:58]} 36. exf5 {[%clk 00:02:53]}
{[%emt 00:00:13]} gxh4 {[%clk 00:22:39]} {[%emt 00:01:04]} 37. Bh2 {[%clk
00:03:19]} {[%emt 00:00:04]} e4 {[%clk 00:11:36]} {[%emt 00:11:34]} 38. Bf4+
{[%clk 00:03:42]} {[%emt 00:00:07]} Nxf4 {[%clk 00:02:11]} {[%emt 00:09:55]} 39.
Qxf4+ {[%clk 00:04:07]} {[%emt 00:00:05]} Qg5 {[%clk 00:02:23]} {[%emt
00:00:17]} 40. Qxe4 {[%clk 00:01:02]} {[%emt 00:03:35]} Bxf5 {[%clk 00:01:31]}
{[%emt 00:01:22]} 41. Qf3 {[%clk 00:01:06]} {[%emt 00:00:25]} Rf7 {[%clk
00:47:39]} {[%emt 00:04:22]} 42. Bxf5 {[%clk 00:30:44]} {[%emt 00:20:52]} Rxf5
{[%clk 00:47:51]} {[%emt 00:00:18]} 43. Qh3 {[%clk 00:29:06]} {[%emt 00:02:08]}
Qg4 {[%clk 00:41:49]} {[%emt 00:06:33]} 44. Rf1 {[%clk 00:25:47]} {[%emt
00:03:48]} Rxf1+ {[%clk 00:37:44]} {[%emt 00:04:34]} 45. Kxf1 {[%clk 00:26:12]}
{[%emt 00:00:05]} Qd1+ {[%clk 00:38:11]} {[%emt 00:00:04]} 46. Kf2 {[%clk
00:26:35]} {[%emt 00:00:07]} Qc2+ {[%clk 00:36:16]} {[%emt 00:02:25]} 47. Kg1
{[%clk 00:26:07]} {[%emt 00:00:58]} Qxc4 {[%clk 00:36:20]} {[%emt 00:00:26]}
1/2-1/2

[Event "FIDE Grand Swiss 2023"]
[Site "Villa Marina, Douglas, Isle of Man, Isle Of Man"]
[Date "2023.10.26"]
[Round "2.24"]
[White "Tari, Aryan"]
[Black "Harikrishna, Pentala"]
[Result "1-0"]
[TimeControl "40/90 + 30 + 30s/move"]
[WhiteFideId "1510045"]
[BlackFideId "5007003"]
[WhiteElo "2619"]
[BlackElo "2716"]

1. e4 {[%clk 01:40:57]} {[%emt 00:00:03]} c5 {[%clk 01:40:51]} {[%emt
00:00:10]} 2. Nf3 {[%clk 01:41:19]} {[%emt 00:00:08]} e6 {[%clk 01:41:16]}
{[%emt 00:00:05]} 3. d4 {[%clk 01:41:30]} {[%emt 00:00:19]} cxd4 {[%clk
01:41:39]} {[%emt 00:00:06]} 4. Nxd4 {[%clk 01:41:56]} {[%emt 00:00:04]} Nc6
{[%clk 01:42:01]} {[%emt 00:00:08]} 5. Bf4 {[%clk 01:41:25]} {[%emt 00:01:01]}
d6 {[%clk 01:42:03]} {[%emt 00:00:28]} 6. Nxc6 {[%clk 01:41:27]} {[%emt
00:00:29]} bxc6 {[%clk 01:42:26]} {[%emt 00:00:07]} 7. c4 {[%clk 01:41:26]}
{[%emt 00:00:31]} e5 {[%clk 01:38:05]} {[%emt 00:04:51]} 8. Be3 {[%clk
01:41:01]} {[%emt 00:00:54]} Nf6 {[%clk 01:35:42]} {[%emt 00:02:52]} 9. Nc3
{[%clk 01:40:56]} {[%emt 00:00:36]} Be7 {[%clk 01:31:17]} {[%emt 00:04:55]} 10.
Be2 {[%clk 01:39:53]} {[%emt 00:01:33]} O-O {[%clk 01:31:37]} {[%emt 00:00:10]}
11. O-O {[%clk 01:40:18]} {[%emt 00:00:04]} Be6 {[%clk 01:31:21]} {[%emt
00:00:47]} 12. b4 {[%clk 01:35:27]} {[%emt 00:05:21]} h6 {[%clk 01:25:32]}
{[%emt 00:06:19]} 13. a4 {[%clk 01:23:10]} {[%emt 00:12:47]} Qc7 {[%clk
01:19:46]} {[%emt 00:06:16]} 14. Rc1 {[%clk 01:06:20]} {[%emt 00:17:20]} Qb7
{[%clk 01:18:09]} {[%emt 00:02:07]} 15. b5 {[%clk 01:06:29]} {[%emt 00:00:22]}
Rac8 {[%clk 01:13:49]} {[%emt 00:04:49]} 16. a5 {[%clk 00:55:54]} {[%emt
00:11:06]} Nd7 {[%clk 01:12:47]} {[%emt 00:01:32]} 17. a6 {[%clk 00:54:10]}
{[%emt 00:02:15]} Qc7 {[%clk 01:08:29]} {[%emt 00:04:47]} 18. Nd5 {[%clk
00:44:12]} {[%emt 00:10:27]} Bxd5 {[%clk 01:08:37]} {[%emt 00:00:21]} 19. cxd5
{[%clk 00:44:37]} {[%emt 00:00:05]} c5 {[%clk 01:09:02]} {[%emt 00:00:05]} 20.
g3 {[%clk 00:44:39]} {[%emt 00:00:28]} Rce8 {[%clk 01:02:58]} {[%emt 00:06:34]}
21. h4 {[%clk 00:44:11]} {[%emt 00:00:57]} Nb6 {[%clk 01:03:02]} {[%emt
00:00:27]} 22. Bg4 {[%clk 00:41:31]} {[%emt 00:03:10]} Rb8 {[%clk 00:59:45]}
{[%emt 00:03:47]} 23. Bh3 {[%clk 00:38:20]} {[%emt 00:03:42]} Nd7 {[%clk
00:58:34]} {[%emt 00:01:41]} 24. Qd3 {[%clk 00:36:07]} {[%emt 00:02:42]} Bd8
{[%clk 00:57:15]} {[%emt 00:01:49]} 25. Rc2 {[%clk 00:33:15]} {[%emt 00:03:23]}
Re8 {[%clk 00:55:51]} {[%emt 00:01:53]} 26. Qe2 {[%clk 00:32:35]} {[%emt
00:01:09]} Nf6 {[%clk 00:55:44]} {[%emt 00:00:37]} 27. Bd2 {[%clk 00:32:53]}
{[%emt 00:00:13]} Qe7 {[%clk 00:56:00]} {[%emt 00:00:14]} 28. h5 {[%clk
00:31:22]} {[%emt 00:02:01]} Bb6 {[%clk 00:53:39]} {[%emt 00:02:51]} 29. Kg2
{[%clk 00:30:37]} {[%emt 00:01:15]} Qd8 {[%clk 00:51:08]} {[%emt 00:03:01]} 30.
Ra1 {[%clk 00:28:57]} {[%emt 00:02:10]} Kh8 {[%clk 00:49:25]} {[%emt 00:02:12]}
31. Qf3 {[%clk 00:27:11]} {[%emt 00:02:16]} Rf8 {[%clk 00:48:46]} {[%emt
00:01:09]} 32. Bf5 {[%clk 00:25:40]} {[%emt 00:02:01]} Qe8 {[%clk 00:46:09]}
{[%emt 00:03:06]} 33. Qd3 {[%clk 00:22:32]} {[%emt 00:03:39]} Bc7 {[%clk
00:38:58]} {[%emt 00:07:41]} 34. Rb2 {[%clk 00:22:25]} {[%emt 00:00:37]} Kg8
{[%clk 00:33:39]} {[%emt 00:05:49]} 35. Rh1 {[%clk 00:21:30]} {[%emt 00:01:26]}
Qd8 {[%clk 00:32:35]} {[%emt 00:01:33]} 36. Ra2 {[%clk 00:20:18]} {[%emt
00:01:43]} Re8 {[%clk 00:31:32]} {[%emt 00:01:33]} 37. Qe2 {[%clk 00:18:17]}
{[%emt 00:02:31]} Qe7 {[%clk 00:31:05]} {[%emt 00:00:57]} 38. Rb2 {[%clk
00:16:53]} {[%emt 00:01:54]} Qd8 {[%clk 00:30:20]} {[%emt 00:01:15]} 39. Ra2
{[%clk 00:15:56]} {[%emt 00:01:28]} Qe7 {[%clk 00:30:41]} {[%emt 00:00:09]} 40.
Ra3 {[%clk 00:11:47]} {[%emt 00:04:39]} Rf8 {[%clk 00:27:10]} {[%emt 00:04:00]}
41. Qc4 {[%clk 00:08:14]} {[%emt 00:04:03]} Rfe8 {[%clk 00:22:16]} {[%emt
00:05:23]} 42. Rb3 {[%clk 00:06:23]} {[%emt 00:02:22]} Qd8 {[%clk 00:21:42]}
{[%emt 00:01:04]} 43. Qc1 {[%clk 00:50:21]} {[%emt 00:06:33]} Kf8 {[%clk
01:08:20]} {[%emt 00:03:52]} 44. g4 {[%clk 00:45:41]} {[%emt 00:05:10]} Ba5
{[%clk 00:57:34]} {[%emt 00:11:16]} 45. Be3 {[%clk 00:37:23]} {[%emt 00:08:47]}
Bb6 {[%clk 00:56:06]} {[%emt 00:01:58]} 46. Rc3 {[%clk 00:26:19]} {[%emt
00:11:35]} c4 {[%clk 00:48:28]} {[%emt 00:08:08]} 47. Rxc4 {[%clk 00:26:41]}
{[%emt 00:00:09]} Bd4 {[%clk 00:48:49]} {[%emt 00:00:08]} 48. g5 {[%clk
00:23:38]} {[%emt 00:03:33]} Bxe3 {[%clk 00:48:54]} {[%emt 00:00:26]} 49. Qxe3
{[%clk 00:24:02]} {[%emt 00:00:06]} hxg5 {[%clk 00:48:32]} {[%emt 00:00:52]} 50.
Qxa7 {[%clk 00:23:27]} {[%emt 00:01:05]} Rxb5 {[%clk 00:45:43]} {[%emt
00:03:19]} 51. Rc7 {[%clk 00:19:59]} {[%emt 00:03:59]} Re7 {[%clk 00:44:37]}
{[%emt 00:01:34]} 52. Rhc1 {[%clk 00:19:10]} {[%emt 00:01:19]} Ne8 {[%clk
00:44:17]} {[%emt 00:00:50]} 53. Rxe7 {[%clk 00:17:39]} {[%emt 00:02:02]} Qxe7
{[%clk 00:44:40]} {[%emt 00:00:06]} 54. Bd7 {[%clk 00:15:27]} {[%emt 00:02:42]}
1-0

[Event "FIDE Grand Swiss 2023"]
[Site "Villa Marina, Douglas, Isle of Man, Isle Of Man"]
[Date "2023.10.26"]
[Round "2.25"]
[White "Vitiugov, Nikita"]
[Black "Gledura, Benjamin"]
[Result "1-0"]
[TimeControl "40/90 + 30 + 30s/move"]
[WhiteFideId "4152956"]
[BlackFideId "712779"]
[WhiteElo "2711"]
[BlackElo "2633"]

1. d4 {[%clk 01:40:51]} {[%emt 00:00:07]} d5 {[%clk 01:40:40]} {[%emt
00:00:21]} 2. c4 {[%clk 01:41:12]} {[%emt 00:00:09]} e6 {[%clk 01:40:49]}
{[%emt 00:00:20]} 3. Nc3 {[%clk 01:41:19]} {[%emt 00:00:23]} Nf6 {[%clk
01:40:42]} {[%emt 00:00:37]} 4. cxd5 {[%clk 01:41:14]} {[%emt 00:00:36]} exd5
{[%clk 01:41:03]} {[%emt 00:00:09]} 5. Bg5 {[%clk 01:41:36]} {[%emt 00:00:07]}
c6 {[%clk 01:40:34]} {[%emt 00:00:59]} 6. e3 {[%clk 01:41:40]} {[%emt
00:00:25]} h6 {[%clk 01:39:33]} {[%emt 00:01:31]} 7. Bh4 {[%clk 01:41:51]}
{[%emt 00:00:19]} Be7 {[%clk 01:39:46]} {[%emt 00:00:17]} 8. Bd3 {[%clk
01:41:42]} {[%emt 00:00:39]} O-O {[%clk 01:40:08]} {[%emt 00:00:08]} 9. Nge2
{[%clk 01:41:57]} {[%emt 00:00:15]} Ne8 {[%clk 01:39:50]} {[%emt 00:00:48]} 10.
Bg3 {[%clk 01:41:54]} {[%emt 00:00:33]} Nd6 {[%clk 01:40:05]} {[%emt 00:00:15]}
11. O-O {[%clk 01:41:12]} {[%emt 00:01:11]} Re8 {[%clk 01:40:11]} {[%emt
00:00:24]} 12. Qc2 {[%clk 01:41:06]} {[%emt 00:00:35]} Bf8 {[%clk 01:39:56]}
{[%emt 00:00:46]} 13. b4 {[%clk 01:38:48]} {[%emt 00:02:49]} Na6 {[%clk
01:30:52]} {[%emt 00:09:34]} 14. a3 {[%clk 01:38:09]} {[%emt 00:01:10]} Nc7
{[%clk 01:25:28]} {[%emt 00:05:53]} 15. a4 {[%clk 01:36:46]} {[%emt 00:01:53]}
Bd7 {[%clk 01:13:36]} {[%emt 00:12:21]} 16. Rfb1 {[%clk 01:27:47]} {[%emt
00:09:29]} a6 {[%clk 01:08:31]} {[%emt 00:05:36]} 17. a5 {[%clk 01:25:20]}
{[%emt 00:02:58]} Qe7 {[%clk 01:03:36]} {[%emt 00:05:24]} 18. Na4 {[%clk
01:24:05]} {[%emt 00:01:45]} Rad8 {[%clk 01:00:08]} {[%emt 00:03:57]} 19. Nc5
{[%clk 01:16:52]} {[%emt 00:07:43]} Bc8 {[%clk 00:59:23]} {[%emt 00:01:15]} 20.
Be5 {[%clk 01:05:40]} {[%emt 00:11:43]} Ne6 {[%clk 00:53:06]} {[%emt 00:06:46]}
21. Ng3 {[%clk 01:00:47]} {[%emt 00:05:23]} Nxc5 {[%clk 00:47:36]} {[%emt
00:06:01]} 22. Bxd6 {[%clk 00:56:29]} {[%emt 00:04:48]} Qxd6 {[%clk 00:39:32]}
{[%emt 00:08:34]} 23. bxc5 {[%clk 00:56:36]} {[%emt 00:00:23]} Qe7 {[%clk
00:38:47]} {[%emt 00:01:14]} 24. Bf5 {[%clk 00:56:44]} {[%emt 00:00:21]} g6
{[%clk 00:36:48]} {[%emt 00:02:29]} 25. Bxc8 {[%clk 00:57:10]} {[%emt
00:00:05]} Rxc8 {[%clk 00:37:14]} {[%emt 00:00:04]} 26. Rb3 {[%clk 00:52:03]}
{[%emt 00:05:36]} Rc7 {[%clk 00:37:37]} {[%emt 00:00:07]} 27. Rab1 {[%clk
00:51:48]} {[%emt 00:00:45]} Qd7 {[%clk 00:37:29]} {[%emt 00:00:39]} 28. Nf1
{[%clk 00:47:42]} {[%emt 00:04:36]} Re7 {[%clk 00:37:15]} {[%emt 00:00:44]} 29.
Nd2 {[%clk 00:47:07]} {[%emt 00:01:05]} Bg7 {[%clk 00:36:44]} {[%emt 00:01:01]}
30. h3 {[%clk 00:40:08]} {[%emt 00:07:28]} Qc8 {[%clk 00:29:34]} {[%emt
00:07:40]} 31. R1b2 {[%clk 00:36:29]} {[%emt 00:04:09]} Re8 {[%clk 00:28:06]}
{[%emt 00:01:58]} 32. Nf3 {[%clk 00:34:38]} {[%emt 00:02:21]} Ree7 {[%clk
00:28:05]} {[%emt 00:00:31]} 33. Qb1 {[%clk 00:34:19]} {[%emt 00:00:49]} Qd7
{[%clk 00:27:20]} {[%emt 00:01:15]} 34. Ne1 {[%clk 00:26:58]} {[%emt 00:07:51]}
Qc8 {[%clk 00:27:12]} {[%emt 00:00:39]} 35. Nd3 {[%clk 00:26:51]} {[%emt
00:00:37]} Qd7 {[%clk 00:23:51]} {[%emt 00:03:51]} 36. Rb6 {[%clk 00:26:27]}
{[%emt 00:00:54]} Kh7 {[%clk 00:22:23]} {[%emt 00:01:58]} 37. Nf4 {[%clk
00:22:18]} {[%emt 00:04:39]} Bf6 {[%clk 00:18:18]} {[%emt 00:04:34]} 38. R2b3
{[%clk 00:21:16]} {[%emt 00:01:32]} Kg7 {[%clk 00:17:15]} {[%emt 00:01:33]} 39.
Qb2 {[%clk 00:20:36]} {[%emt 00:01:11]} Qc8 {[%clk 00:16:11]} {[%emt 00:01:34]}
40. Nd3 {[%clk 00:18:51]} {[%emt 00:02:14]} h5 {[%clk 00:06:10]} {[%emt
00:10:32]} 41. Ne5 {[%clk 00:13:43]} {[%emt 00:05:38]} h4 {[%clk 00:06:00]}
{[%emt 00:00:39]} 42. Ng4 {[%clk 00:05:07]} {[%emt 00:09:06]} Bg5 {[%clk
00:45:18]} {[%emt 00:11:12]} 43. f4 {[%clk 00:51:26]} {[%emt 00:04:10]} Bf6
{[%clk 00:45:28]} {[%emt 00:00:21]} 44. Kh1 {[%clk 00:38:40]} {[%emt 00:13:16]}
g5 {[%clk 00:37:25]} {[%emt 00:08:33]} 45. Qb1 {[%clk 00:32:01]} {[%emt
00:07:10]} gxf4 {[%clk 00:18:41]} {[%emt 00:19:13]} 46. Nxf6 {[%clk 00:30:54]}
{[%emt 00:01:36]} Kxf6 {[%clk 00:18:28]} {[%emt 00:00:43]} 47. Qh7 {[%clk
00:31:19]} {[%emt 00:00:06]} Rxe3 {[%clk 00:09:02]} {[%emt 00:09:56]} 48. Qxh4+
{[%clk 00:26:31]} {[%emt 00:05:17]} Kg7 {[%clk 00:06:25]} {[%emt 00:03:07]} 49.
Rxe3 {[%clk 00:19:41]} {[%emt 00:07:21]} fxe3 {[%clk 00:06:47]} {[%emt
00:00:08]} 50. Rb3 {[%clk 00:20:01]} {[%emt 00:00:11]} Qe6 {[%clk 00:01:16]}
{[%emt 00:06:01]} 51. Qg3+ {[%clk 00:18:55]} {[%emt 00:01:35]} Kf8 {[%clk
00:00:46]} {[%emt 00:01:00]} 52. Qxc7 {[%clk 00:19:00]} {[%emt 00:00:25]} 1-0